Cogmind - Beta 17 @@@ ROGUE MODE // 2026.07.31 @ 21:35:56 Player: 4R-ZE3 Result: Destroyed by GC-WWL(p) with EM Pulse Gun Performance ------------- Evolutions (0) 0 Regions Visited (3) 600 Robots Destroyed (34) 170 Value Destroyed (819) 819 Prototype IDs (23) 460 Alien Tech Used (0) 0 Bonus (800) 800 TOTAL SCORE: 2849 Bonus ------- Registered with UFD 300 Met Optimus in HQ 500 Cogmind --------- Core Integrity 0/250 Matter 300/300 Energy 100/100 System Corruption 0% Temperature Cool (0) Movement Flying (40) Location -7/Scraptown Parts ------- > --- POWER (1) -------- (None) > --- PROPULSION (2) --- Xenon Bombardment Thruster > --- UTILITY (2) ------ (None) > --- WEAPON (2) ------- Makeshift Spear > --- INVENTORY (5) ---- Meta Core Overtuned Huge Scrapsphere Makeshift Hacking Suite DM-GVY's Chainsaw Peak State ------------ > --- POWER ------------ Improved Deuterium Engine > --- PROPULSION ------- Armored Huge Wheel > --- UTILITY ---------- Huge Storage Unit Gun Armor > --- WEAPON ----------- Subdweller Machine Gun Makeshift Axe > --- INVENTORY -------- Light Ion Engine Subdweller Power Source Subdweller Power Source Subdweller Power Source Subdweller Power Source Meta Core Improved Treads Armored Treads Subdweller Monowheel Subdweller Monowheel Xenon Bombardment Thruster Advanced Heat Sink Large Storage Unit Trap Scanner Trap Scanner Subdweller Optics Improved Terrain Scanner Scrap Shield Hacking Suite Hacking Suite Subdweller Laser Subdweller Machine Gun Makeshift Shrapnel Gun Subdweller Shrapnel Launcher [Rating: 35] Favorites ----------- Power Light Ion Engine Engine Light Ion Engine Power Core Light Nuclear Core Propulsion Light Treads Treads Light Treads Wheel Armored Huge Wheel Flight Unit Xenon Bombardment Thruster Utility Gun Armor Device Seismic Detector Storage Large Storage Unit Protection Gun Armor Weapon Light Assault Rifle Energy Gun Subdweller Laser Ballistic Gun Light Assault Rifle Slashing Weapon Makeshift Axe Piercing Weapon Makeshift Spear Build | -11 -10 -10 -7 ------- Run | Yrd Mat Sub Scr Slots Evolved . | . . . . Power . | . . . . Propulsion . | . . . . Utility . | . . . . Weapon . | . . . . Parts Attached 31 | 6 5 13 7 Power 5 | 1 . 2 2 Engine 4 | 1 . 2 1 Core 1 | . . . 1 Reactor . | . . . . Propulsion 6 | 2 . 2 2 Treads 3 | 2 . 1 . Leg . | . . . . Wheel 2 | . . 1 1 Hover . | . . . . Flight 1 | . . . 1 Utility 10 | 1 4 3 2 Device 2 | . 1 . 1 Storage 5 | 1 2 1 1 Processor . | . . . . Hackware . | . . . . Protection 3 | . 1 2 . Artifact . | . . . . Weapon 10 | 2 1 6 1 Energy Gun 1 | . . 1 . Energy Cannon . | . . . . Ballistic Gun 6 | 2 1 3 . Ballistic Cannon . | . . . . Launcher . | . . . . Special Weapon . | . . . . Impact Weapon . | . . . . Slashing Weapon 2 | . . 2 . Piercing Weapon 1 | . . . 1 Special Melee Weapon . | . . . . Unidentified Prototypes . | . . . . Parts Lost 9 | . . 9 . Power 2 | . . 2 . Propulsion 3 | . . 3 . Utility . | . . . . Weapon 4 | . . 4 . Highest Loss Streak 3 | . . 3 . To Critical Strikes . | . . . . Average Backups 13 | 3 9 12 19 Power 3 | . 1 2 4 Propulsion 2 | 1 1 1 3 Utility 5 | . 4 5 7 Weapon 2 | . 1 2 3 Tool/Special . | . . . . Unused Backups 24 | 1 3 1 19 Power 4 | . . . 4 Propulsion 6 | . 2 . 4 Utility 8 | . . 1 7 Weapon 5 | 1 1 . 3 Tool/Special 1 | . . . 1 Average Slot Usage (%) 90 | . 96 96 80 Engine 12 | . 14 12 13 Treads 14 | . 28 21 . Wheel 5 | . . 1 13 Storage 13 | . 14 12 13 Protection 11 | . 7 12 13 Energy Gun 1 | . . 3 . Ballistic Gun 20 | . 28 25 13 Slashing Weapon 7 | . . 5 13 Peak Build Rating 35 | 6 8 23 35 Average Rating 19 | 5 7 17 30 On Entrance 9 | . 6 8 23 Avg Prop Armor Cover (%) 11 | . . 11 . Naked Turns 1 | . . . 1 Heaviest Build 101 | 12 27 38 101 Greatest Support 40 | 40 40 40 28 Greatest Overweight (x) 3 | . . 1 3 Average Overweight (x) 1 | . . . 2 Largest Inventory Capacity 25 | 8 15 15 25 Average Capacity 17 | 7 11 15 23 Most Carried 25 | 7 10 15 25 Average Carried 14 | 3 9 12 20 Final Capacity 15 | 8 15 15 5 Final Carried 15 | 6 10 15 5 Class Distribution -------------------- 84% | Mutant 9% | Scavenger-Gunner 4% | Gunner Dominant Class ---------------- Mutant | -10/Materials Mutant | -10/Subcaves Mutant | -7/Scraptown Resources | -11 -10 -10 -7 ----------- Run | Yrd Mat Sub Scr Matter Collected 1019 | 264 384 301 70 Remotely . | . . . . Salvage Created 1162 | 167 466 459 70 Parts 84 | 12 39 29 4 Haulers Intercepted 2 | . 2 . . Recyclers Shooed 2 | 1 1 . . Parts Field Recycled . | . . . . Retrieved Matter . | . . . . Parts Self-Destructed 7 | . . 7 . Prevented . | . . . . Parts Restored . | . . . . Kills | -11 -10 -10 -7 ------- Run | Yrd Mat Sub Scr Combat Hostiles Destroyed 24 | . 12 11 1 Melee 2 | . . 1 1 Guns 22 | . 12 10 . Classes Destroyed 9 | 3 4 1 1 Worker 2 | 2 . . . Tunneler 3 | 3 . . . Hauler 2 | . 2 . . Recycler 1 | 1 . . . Operator 2 | . 2 . . Swarmer 6 | . 6 . . Grunt 8 | . 6 2 . Subdweller 9 | . . 9 . Scrapper 1 | . . . 1 Best Kill Streak 4 | 3 4 2 1 Combat Bots Only 4 | . 4 2 1 Max Kills in Single Turn 1 | 1 1 1 1 Gunslinging . | . . . . Exploded . | . . . . Melee 1 | . . 1 1 Uniques/NPCs Destroyed . | . . . . Combat | -11 -10 -10 -7 -------- Run | Yrd Mat Sub Scr Hostile Shots Fired 146 | . 61 69 16 Missed 54 | . 19 26 9 Hits 92 | . 42 43 7 Projectile 92 | . 42 43 7 AOE 4 | . . 4 . Critical Strikes 3 | . 2 . 1 Damage Taken 1536 | . 407 1008 121 Core 250 | . 31 110 109 Absorbed by Shields . | . . . . Redirected to Shielding 9 | . 9 . . Core Remaining (%) 100 | 100 . . . Volleys Fired 110 | 18 57 35 . Largest 4 | 2 2 4 . Hottest 125 | 40 40 125 . Shots Fired 260 | 36 114 110 . Gun 260 | 36 114 110 . Cannon . | . . . . Launcher . | . . . . Special . | . . . . Kinetic 233 | 36 114 83 . Thermal 27 | . . 27 . Explosive . | . . . . Electromagnetic . | . . . . Robot Hit Streak 14 | 7 14 9 . Robot Miss Streak 6 | 3 6 4 . Penetration Max . | . . . . Secondary Targets 3 | . 1 2 . Max Gunslinging Chain 1 | . 1 1 . Shots Hit Robots 176 | 24 75 75 2 Core Hits 58 | 7 27 23 1 Critical Kills . | . . . . Critical Parts Destroyed 1 | 1 . . . Critical Strikes 1 | 1 . . . Destroy 1 | 1 . . . Melee Attacks 22 | . . 15 7 Impact . | . . . . Slashing 15 | . . 15 . Piercing 7 | . . . 7 Sneak Attacks . | . . . . Combat Hostiles . | . . . . Follow-up Attacks . | . . . . Damage Inflicted 2257 | 304 888 1007 58 Guns 2128 | 304 888 936 . Cannons . | . . . . Explosions . | . . . . Melee 129 | . . 71 58 Ramming . | . . . . Kinetic 1718 | 304 888 526 . Thermal 410 | . . 410 . Explosive . | . . . . Electromagnetic . | . . . . Impact . | . . . . Slashing 71 | . . 71 . Piercing 58 | . . . 58 Highest Corruption . | . . . . Average Corruption . | . . . . Corruption Purged . | . . . . Corruption Blocked . | . . . . Overload Shots . | . . . . Overflow Damage . | . . . . Projectiles . | . . . . Explosions . | . . . . Melee . | . . . . Knockbacks . | . . . . Impact . | . . . . Kinetic . | . . . . Secondary . | . . . . Self-Inflicted Damage . | . . . . Shots . | . . . . Rammed . | . . . . Targets Rammed . | . . . . Kicked . | . . . . Crushed . | . . . . Highest Temperature 46 | . 12 46 16 Average Temperature 16 | . 7 17 16 Received Heat Transfer 286 | . 96 117 73 Siege Activations . | . . . . Martial Activations . | . . . . Shielding Activations . | . . . . Robots Disrupted . | . . . . Combat Hostiles . | . . . . Robots Corrupted . | . . . . Combat Hostiles . | . . . . Parts Fried . | . . . . Impact Corruptions . | . . . . Robots Melted . | . . . . Combat Hostiles . | . . . . Parts Melted 2 | . . 2 . Heat Transferred 500 | . . 500 . Parts Sabotaged . | . . . . Parts Stolen . | . . . . Parts Stripped . | . . . . Power Chain Reactions . | . . . . Alert | -11 -10 -10 -7 ------- Run | Yrd Mat Sub Scr Maximum Alert Level . | . . . . Low Security (%) 100 | 100 100 . . Level 1 . | . . . . Level 2 . | . . . . Level 3 . | . . . . Level 4 . | . . . . Level 5 . | . . . . High Security . | . . . . Max Security . | . . . . Peak Influence 130 | 15 130 . . Initial . | . . . . Average 35 | 1 43 . . Influence Increases 394 | 30 314 50 . Destroy 0b10 Robot/C 280 | . 240 40 . Destroy 0b10 Robot/NC 50 | 30 20 . . Destroy Leader 64 | . 54 10 . Influence Decreases 394 | 30 314 50 . Time Decay 368 | 30 314 24 . Lost Part 26 | . . 26 . Squads Dispatched 3 | . 3 . . Investigation 1 | . 1 . . Extermination . | . . . . Reinforcement 2 | . 2 . . Assault . | . . . . Garrison . | . . . . Intercept . | . . . . Searches Triggered . | . . . . Construction Impeded . | . . . . Haulers Reinforced . | . . . . Active Scanning Responses . | . . . . Cargo Convoy Interrupts . | . . . . Stealth | -11 -10 -10 -7 --------- Run | Yrd Mat Sub Scr Distress Signals 2 | . 2 . . Communications Jammed . | . . . . Distress Signals . | . . . . Times Spotted 46 | . 23 11 12 Peak Tracking Total 4 | . 4 3 4 Tactical Retreats 1 | . . . 1 Traps | -11 -10 -10 -7 ------- Run | Yrd Mat Sub Scr Traps Triggered 2 | . 2 . . Indirectly . | . . . . Trap Hack Attempts . | . . . . Triggered . | . . . . Disarmed . | . . . . Reprogrammed . | . . . . Reused . | . . . . Traps Extracted . | . . . . Installed . | . . . . Triggered . | . . . . Machines | -11 -10 -10 -7 ---------- Run | Yrd Mat Sub Scr Machines Disabled 1 | . . 1 . Max in Single Turn 1 | . . 1 . Machines Repaired . | . . . . Machines Dismantled . | . . . . Machines Sabotaged . | . . . . Overloaded Fab Kills . | . . . . Hacking | -11 -10 -10 -7 --------- Run | Yrd Mat Sub Scr Machines Accessed 9 | . 1 2 6 Terminals 1 | . 1 . . Fabricators . | . . . . Repair Stations . | . . . . Recycling Units . | . . . . Scanalyzers . | . . . . Garrison Access . | . . . . Total Hacks 54 | . 4 11 39 Successful 51 | . 1 11 39 Failed 3 | . 3 . . Catastrophic . | . . . . Database Lockouts . | . . . . Manual 9 | . 4 5 . Terminals 4 | . 4 . . Fabricators . | . . . . Repair Stations . | . . . . Recycling Units . | . . . . Scanalyzers . | . . . . Garrison Access . | . . . . Terminal Hacks 50 | . . 11 39 Record 48 | . . 10 38 Proto ID Catalog 2 | . . 1 1 Fabricator Hacks . | . . . . Repair Station Hacks . | . . . . Recycling Unit Hacks . | . . . . Scanalyzer . | . . . . Garrison Access Hacks . | . . . . Unauthorized Hacks 1 | . 1 . . Terminals 1 | . 1 . . Botnet 1 | . 1 . . Fabricators . | . . . . Repair Stations . | . . . . Recycling Units . | . . . . Scanalyzers . | . . . . Garrison Access . | . . . . Data Cores Recovered . | . . . . Used . | . . . . Hacking Detections 1 | . 1 . . Full Trace Events . | . . . . Feedback Events . | . . . . Feedback Blocked . | . . . . Robot Schematics Acquired . | . . . . Robots Built . | . . . . Authchips . | . . . . Time . | . . . . Total Robot Build Rating . | . . . . Part Schematics Acquired . | . . . . Parts Built . | . . . . Authchips . | . . . . Time . | . . . . Total Part Build Rating . | . . . . Part Studies Acquired . | . . . . Parts Repaired . | . . . . Time . | . . . . Parts Recycled . | . . . . Recycled Matter . | . . . . Retrieved Matter . | . . . . Retrieved Components . | . . . . Parts Scanalyzed . | . . . . Part Schematics Acquired . | . . . . Parts Damaged . | . . . . Bothacking | -11 -10 -10 -7 ------------ Run | Yrd Mat Sub Scr Used RIF Installer . | . . . . Robots Hacked . | . . . . Non-combat . | . . . . Combat . | . . . . Robot Hacks Applied . | . . . . Relay Couplers Released . | . . . . Fabnet Peak Effective % . | . . . . Robots Rewired . | . . . . Allies Hacked . | . . . . Hacks Repelled . | . . . . Allies | -11 -10 -10 -7 -------- Run | Yrd Mat Sub Scr Total Allies . | . . . . Largest Group . | . . . . Highest-Rated Group . | . . . . Highest-Rated Ally . | . . . . Total Orders . | . . . . Ally Attacks . | . . . . Total Damage . | . . . . Kills . | . . . . Allies Corrupted . | . . . . Allies Melted 2 | . . . 2 Intel | -11 -10 -10 -7 ------- Run | Yrd Mat Sub Scr Active Infowar (turns) 237 | . 230 . 7 Traps 7 | . . . 7 Seismic 230 | . 230 . . Robot Analysis Total . | . . . . Derelict Logs Recovered 5 | . . . 5 Drone Launches . | . . . . Drone Recoveries . | . . . . Exploration | -11 -10 -10 -7 ------------- Run | Yrd Mat Sub Scr Turns Passed 3947 | 219 871 1320 1537 Spaces Moved 2329 | 95 351 731 1152 Core 4 | 2 . . 2 Treads 1079 | 93 351 635 . Legs . | . . . . Wheels 1079 | . . 96 983 Hover . | . . . . Flight 167 | . . . 167 Fastest Speed 40 | 50 160 120 40 Average Speed 143 | 157 160 155 129 Slowest Speed 240 | 160 160 240 145 Overloaded Moves . | . . . . Propulsion Burnouts . | . . . . Robots Hopped 1 | . . . 1 Potential Cave-ins . | . . . . Cave-ins Triggered . | . . . . Exploration Rate (%) 39 | 5 41 36 77 Regions Visited 3 Branch Regions 2 Pre-discovered Areas 1 | . . . 1 Known Exits Taken . | . . . . Unknown Exits Taken 3 | 1 1 1 . Scrap Searched 5 | . . . 5 Spaces Dug 4 | . . . 4 Terrain Destroyed 4 | . . . 4 Melee 4 | . . . 4 Projectile . | . . . . AOE . | . . . . Terrain Rammed . | . . . . Walls Destroyed . | . . . . Machines Disabled . | . . . . Actions | -11 -10 -10 -7 --------- Run | Yrd Mat Sub Scr Total 2701 | 126 554 830 1191 Wait 147 | . 129 12 6 Move 2324 | 94 350 730 1150 Hop 1 | . . . 1 Pick Up 43 | 7 7 15 14 Fast Attach 12 | 6 1 2 3 Attach 11 | . . 9 2 Detach 1 | . . . 1 Swap 11 | . 4 5 2 Drop 18 | 1 6 6 5 Fire 110 | 18 57 35 . Melee 22 | . . 15 7 Ram . | . . . . Kick . | . . . . Crush . | . . . . Escape Stasis . | . . . . Rewire 1 | . . 1 . Trap . | . . . . Miscellaneous . | . . . . Route ------- -11/Scrapyard -10/Materials (discovered 3 exits: [*Mat] / [*Min] / *Sub) -10/Subcaves (discovered 4 exits: Mat x2 / Rec / *Scr) -7/Scraptown (discovered 1 exit: [*Fac]) History --------- Turn | Location | Event 32 | -11/Scrapyard | Discovered new exit (range 15) 220 | -11/Scrapyard | Entered Materials 302 | -10/Materials | Build established: Mutant 448 | -10/Materials | Discovered new exit (range 14) 622 | -10/Materials | Discovered new exit (range 10) 744 | -10/Materials | Discovered new exit (range 10) 1091 | -10/Materials | Entered Subcaves 1092 | -10/Subcaves | Approached by a straggling Scientist 1150 | -10/Subcaves | Shifting Twisted Machinery released Battle Rifle 1153 | -10/Subcaves | Shifting Twisted Machinery released Mak. Light Armor Plating 1260 | -10/Subcaves | Shifting Twisted Machinery released Sub. Monowheel 1262 | -10/Subcaves | Shifting Twisted Machinery released Mak. Axe 1284 | -10/Subcaves | Scientist uncovered a shortcut to Scraptown 1564 | -10/Subcaves | Visited 4L-MR0's lab 1579 | -10/Subcaves | Found Gun Armor 1614 | -10/Subcaves | Attached Gun Armor, gained temporary slots: Weapon x2 1864 | -10/Subcaves | Visited Clippyterm 1869 | -10/Subcaves | Identified exit to Materials 1869 | -10/Subcaves | Identified exit to Recycling 1904 | -10/Subcaves | Lost 3 parts (1p1n1w) 2165 | -10/Subcaves | Build established: Scavenger-Gunner 2271 | -10/Subcaves | Lost 3 parts (1n2w) 2273 | -10/Subcaves | A Subdweller sparked back to life 2273 | -10/Subcaves | A Subdweller sparked back to life 2273 | -10/Subcaves | A Subdweller sparked back to life 2302 | -10/Subcaves | Found Meta Core 2310 | -10/Subcaves | Core integrity fell below 50% 2323 | -10/Subcaves | Lost 3 parts (1p1n1w) 2411 | -10/Subcaves | Entered Scraptown 2584 | -7/Scraptown | Build established: Mutant 2588 | -7/Scraptown | Visited Symbiants 2610 | -7/Scraptown | Visited Spacefarers 2628 | -7/Scraptown | Visited IN-MT5's Study 2654 | -7/Scraptown | Visited Comm Corps 2719 | -7/Scraptown | Visited UFD Registry 2719 | -7/Scraptown | Registered with UFD as "Armorslicer" 3007 | -7/Scraptown | Scanned Subdweller tech in exchange for log data 3011 | -7/Scraptown | Learned location of 2 exits from Upper Caves 3013 | -7/Scraptown | Learned location of Quarantine (-3) 3014 | -7/Scraptown | Learned Factory trap positions 3156 | -7/Scraptown | Visited Curators Association 3220 | -7/Scraptown | Visited DA-N13 Charitable Foundation 3233 | -7/Scraptown | Found DCF Scrap (30 items) 3285 | -7/Scraptown | Visited LU-1G1's Boring Crew 3326 | -7/Scraptown | Delivered Scrap Shield to a Scientist 3362 | -7/Scraptown | Visited Science Guys 3407 | -7/Scraptown | Visited Scrapoid Pod Storage 3427 | -7/Scraptown | Visited Abandonware Association 3445 | -7/Scraptown | Learned abandonware demo "POISON.EXE" 3445 | -7/Scraptown | Learned abandonware demo "MELTYB.EXE" 3474 | -7/Scraptown | Visited Modified Component R&D 3513 | -7/Scraptown | Visited Derelict Rescue Squad 3522 | -7/Scraptown | Found DRS Beacon 3552 | -7/Scraptown | Visited Botcube Research 3751 | -7/Scraptown | Met Optimus 3751 | -7/Scraptown | Accepted into 0bPrime 3843 | -7/Scraptown | Discovered new exit (range 5) 3846 | -7/Scraptown | Civil war broke out across Scraptown 3848 | -7/Scraptown | Released all parts (6) 3921 | -7/Scraptown | Core integrity fell below 20% 3935 | -7/Scraptown | Found DM-GVY's Chainsaw 3947 | -7/Scraptown | Lost 7 allies 3948 | -7/Scraptown | Destroyed by GC-WWL(p) with EM Pulse Gun Last Messages --------------- 03901_ DE-PJK(E) suffers critical hit (Burn). 03904_ OP-LLF(E) destroyed. 03905_ 6F-91Q(j) destroyed. 03906_ DE-PJK(E) destroyed. 03907_ GC-AIN(j) cannibalizes Ovr. Pulse Rifle to repair Ovr. Pulse Rifle. 03907_ GC-AIN(j) heat short circuits Lgt. Deuterium Engine. 03908_ GC-AIN(j) destroyed. 03910_ 4A-3WJ(j) suffers critical hit (Destroy). 03910_ 4A-3WJ(j) destroyed. 03916_ J0-6JN(j) destroyed. 03916_ Acquired Mak. Spear. 03918_ Dropped Lgt. Nuclear Core. 03920_ Critical hit (Burn: +50). 03921_ EN-O44(j) destroyed. 03923_ Acquired 10 matter. 03934_ Dropped Sub. Shrapnel Launcher. 03935_ Acquired DM-GVY's Chainsaw. 03937_ The unstable cave ceiling collapses. Map ----- +----------------------------------------------------+ | !! !"## "### "#? | | ! %[## "#X ""#? | | %= % "### "#? | | """""""""""""""""""" """" ""==[ ## """" "#? | | """"""""""""""""""""""""" ""!=! "## ""#? | | ""###### ################""*=%= "## "#? | | ""# ##????????#""!%! "############? | | ""# X"#????????#"!%[! "##"""" #????? | | ""# "" "" ##????????#""=[ ## "#????? | | ""# "" "" X"#??????###" "## "#????? | | ""# " " ######### #"" "## !"#????? | | "" "" ! "#????? | | "" "" =[%! "## "#????? | | ""# " " ######### #""=[= "## "#????? | | ""# "" "" ""#??????###""%!= "##"""""#????? | | ""# "" "" ##????????#" != ########????? | | ""# X"#????????#""=% "#???????????? | | ""# ##????????#""!!! "############# | | ""###### ################""%%!! "##" """"""""" | | """"""""""""""""""""""""""""=*= "## """"" """ | | """""""""""""""!"""" """"" " "" """ | | !%[%* "## " "" | | !!*= = !!! "## "" | | =!%* =%==[ "## "" " | | = != != =!%%! ## "" X" | | !%! [%!p%=@ !/%= # """ " | | """ """"""""""" """"""!"""=["""""= ## "/""" | | ### ########### ###########%!##### ## "" """""" | | "##! =!= #????? =** ?# ## "& """""" | | " ""### =| ** #????# # ##! ############# | | " " "] ! /!/!!!#????# #?##%= #???????????? | | " ""###*%]/!*%!#????# #??#=%="???????????? | | "##== ##! #????#######??# !!"#??????????? | | " ""### *=## #?????????????# "###########? | | " "=#?##########?????????????# #? | | " ""#????????????????????????# ##? | | """ "#???????????????????????# #? | | # "!" ####???????????????????????# #? | | #"###"#??????????????????????????# #? | | ###?###??????????????????????????# ############? | | ?????????????????????????????????# #####???????? | | ?????????????????????????????????# """"#???????? | | ?????????????????????????????#" # "" "#???????? | | ?????????????????????? "#???????? | | ?????????????????????? " "#???????? | | ?????????????????????? """"#???????? | | ??????????????????????"##!! ##""|## ######???????? | | ????????????????????????#"????"""?###????????????? | | ???????????????????????????????##????????????????? | | ?????????????????????????????????????????????????? | +----------------------------------------------------+ Best States ------------- Heat Dissipation 25 Energy Generation 16 Energy Capacity 290 Matter Stores 300 Matter Capacity 300 Sight Range 16 Terrain Scan Density 10 Armor Coverage 100 Propulsion Shielding 33 Evasion (%) 62 Recoil Reduction 2 Item Schematics ----------------- None Robot Schematics ------------------ None Fabricated ------------ Nothing Repaired ---------- Nothing Studied --------- None Alien Tech Used ----------------- None Achievements -------------- None Challenges ------------ None Game ------ Seed OpticalSmartTurretformer Manual? 0 Play Time 00:31:41 Cumulative 135.2 hours Start 2026.07.31 @ 20:53:32 End 2026.07.31 @ 21:35:56 Sessions 2 Manual Loads 0 Difficulty Rogue Special Mode None Game No. 147 Rogue 93 Adventurer 54 Explorer 0 Win Type - Total 5 Types 3/0/0/1/0/0/0/0/0/1 Lore% 57 Gallery% 54 Achievement% 49 Wizard Run 0 Options --------- Layout 1 ASCII 0 Keyboard 0 Movement Mouse Keybinds 1 Fullscreen 2 Font 32/Tamsyn Map View 50x35 Zoom Use 0% Tactical HUD 1 Map Filters NONE Filters NONE Steam 1 RUN: 88e34d42-c1ea-431d-b347-7d1a76c73be8